[Event "Norway Eliteserien 2023-24"]
[Site "Oslo"]
[Date "2024.03.08"]
[Round "7.13"]
[White "Kulaots, Kaido"]
[Black "Hauge, Lars Oskar"]
[Result "0-1"]
[ECO "C65"]
[WhiteElo "2525"]
[BlackElo "2486"]
[Annotator "TA"]
[PlyCount "96"]
[EventDate "2023.10.27"]
[EventType "team-tourn"]
[EventCountry "NOR"]
[SourceTitle "playchess.com"]
[Source "ChessBase"]
[SourceQuality "1"]
[TimeControl "40/5400+30:1800+30"]

{[%evp 35,96,28,6,-6,21,-27,0,0,-12,-41,-15,-48,0,-24,-19,-15,0,0,0,0,0,-12,26,37,128,105,110,41,106,0,90,0,289,293,289,0,0,0,0,0,0,0,0,-37,-41,-53,-27,-24,0,0,0,-23,-22,-27,-32,-173,-195,-160,-60,-1588,-1452,-1452,-1180]} 1. e4 e5 2. Nf3 Nc6 3. Bb5 Nf6 4. d3 Ne7 5. O-O c6 6. Ba4 {C65: Ruy Lopez: Berlin Defence (3...Nf6), unusual lines and 4 0-0 Bc5.} d6 7. c3 Ng6 8. Re1 Be7 9. Nbd2 O-O 10. Nf1 Qc7 11. d4 exd4 $146 ({Predecessor:} 11... b5 12. Bb3 a6 13. Ng3 c5 14. h3 c4 15. Bc2 Rd8 16. d5 Bf8 17. Nh2 Nf4 {1-0 Fernandez Siles,L (2218)-Tomaszewski,K (2353) Titled Tuesday intern op 18th Jul Late blitz 2023 (2)}) 12. cxd4 d5 13. e5 Ne4 14. Bc2 Bb4 15. N3d2 f5 16. a3 Ba5 17. b4 Bb6 18. Nb3 f4 19. f3 Ng5 (19... Nxe5 {is more complex.} 20. a4 a6 21. Nc5 a5) 20. Kh1 (20. Bxg6 {is superior.} hxg6 21. a4) 20... Bf5 21. Bxf5 Rxf5 22. Qd3 Qf7 23. b5 Ne6 (23... cxb5 $15 24. Qxb5 Ne6) 24. bxc6 bxc6 25. a4 Rh5 26. Ba3 Nh4 27. a5 Bd8 $1 28. Rec1 Rb8 29. Bd6 Rc8 (29... Bc7 $14) 30. Ra2 Nf5 31. Rac2 (31. Qa6 $16 Qd7 32. Nc5 Nxc5 33. Bxc5) 31... Qd7 (31... Qb7 $1 $14) 32. Ba3 ({White should try} 32. Qa6 $1 $16) 32... Bh4 (32... Qe8 $11) 33. Kg1 (33. Nc5 $16 Nxc5 34. Bxc5) 33... Ne3 $2 {[%mdl 8192]} (33... Bd8 $11 {and Black stays safe.}) 34. Nxe3 $18 fxe3 {[#]} 35. Qxe3 $2 (35. g3 $1 $18) 35... Bg5 $11 36. Qd3 Bxc1 37. Bxc1 c5 38. Nxc5 Nxc5 39. dxc5 (39. Qc3 $5) 39... Rxe5 40. Bb2 Re7 (40... Qf5 $5 41. Qxf5 Rxf5 $15) 41. h3 Kh8 42. Bd4 Qc7 43. a6 Re1+ 44. Kf2 Rce8 45. Rb2 {[#]} (45. Qf5 $15) 45... Qf4 $1 $19 46. g3 Qh6 ({Black should play} 46... Qc1 $17 {Threatens to win with ...Rd1.} 47. Rd2 Rf1+ (47... Rg1 48. Bxg7+ Kxg7 49. Qd4+ Kg6 50. Qg4+ Kf7 51. Qh5+ Kg7 52. Qg4+ Kh6 53. Qh4+ Kg6 54. Qg4+ Kf6 55. Qf4+ Kg6 56. Qg4+ $11) 48. Kg2 Rxf3 49. Kxf3 Qh1+ 50. Kf4 Re4+ 51. Kg5 Qxh3 52. Qxe4 (52. Qf3 $2 Qh6+ 53. Kf5 Qg6#) 52... dxe4) 47. Rb7 $2 {[%mdl 8192]} (47. h4 $15) 47... R8e2+ $19 ({Weaker is} 47... Qxh3 48. Bxg7+ (48. Rxg7 $2 Qh2#) 48... Kg8 49. Qxd5+ R8e6 50. Qd8+ Re8 51. Qd5+ R8e6 52. Rb8+ (52. Qd8+ Re8 $11) 52... Kf7 (52... Kxg7 $2 {loses.} 53. Qg5+ Kf7 54. Qg8+ Kf6 55. Rf8+ Ke5 56. Qg5+ Kd4 57. Rd8+ Kc4 58. Qd5+ Kb4 59. Rb8+ $18) 53. Rb7+ Kg8 $11) 48. Qxe2 {[%emt 2:19:44]} Rxe2+ {[%emt 2:08:41]} 0-1

[Event "Norway Eliteserien 2023-24"]
[Site "Oslo"]
[Date "2024.03.08"]
[Round "7.14"]
[White "Mitusov, Semen"]
[Black "Hobber, Anders"]
[Result "1-0"]
[ECO "B06"]
[WhiteElo "2487"]
[BlackElo "2359"]
[Annotator "RC"]
[PlyCount "39"]
[EventDate "2023.10.27"]
[EventType "team-tourn"]
[EventCountry "NOR"]
[SourceTitle "playchess.com"]
[Source "ChessBase"]
[SourceQuality "1"]
[TimeControl "40/5400+30:1800+30"]

1. e4 g6 2. d4 Bg7 3. Nc3 d6 4. Be3 c6 5. h4 Nf6 6. h5 Nxh5 7. Rxh5 gxh5 8. Qxh5 Nd7 9. Bc4 d5 10. exd5 Nb6 11. Bb3 cxd5 12. Nxd5 Nxd5 13. Bxd5 e6 14. Bb3 O-O 15. Nf3 Qf6 16. O-O-O Qg6 17. Qh4 Bf6 18. Qf4 Qf5 19. Qc7 b5 {[%emt 1:19:30]} 20. c3 {[%emt 1:11:06]} 1-0

[Event "Norway Eliteserien 2023-24"]
[Site "Oslo"]
[Date "2024.03.08"]
[Round "7.15"]
[White "Vålerenga-?. Fossum"]
[Black "Ingebretsen, Jens E"]
[Result "0-1"]
[ECO "E61"]
[WhiteElo "2313"]
[BlackElo "2400"]
[Annotator "ChessBase"]
[PlyCount "68"]
[EventDate "2023.10.27"]
[EventType "team-tourn"]
[EventCountry "NOR"]
[SourceTitle "playchess.com"]
[Source "ChessBase"]
[SourceQuality "1"]
[TimeControl "40/5400+30:1800+30"]

1. Nf3 c5 2. b3 Nc6 3. Bb2 Nf6 4. e3 g6 5. d4 cxd4 6. exd4 d5 7. Be2 Bg7 8. O-O O-O 9. c4 Bf5 10. Nc3 Rc8 11. c5 Ne4 12. Na4 Qc7 13. a3 a5 14. h3 Rcd8 15. Bb5 g5 16. Bc1 g4 17. Nh4 Nxd4 18. Bb2 Nxb5 19. Bxg7 Kxg7 20. Nxf5+ Kh8 21. hxg4 Qe5 22. Qd3 e6 23. Ne3 Nbc3 24. Nxc3 Qxc3 25. Qxc3+ Nxc3 26. f3 d4 27. Nc4 d3 28. Rf2 Rd4 29. Rd2 a4 30. Na5 e5 31. Kf2 f5 32. Rc1 Ne2 33. Rc4 axb3 34. Rxd4 {[%emt 1:46:46]} Nxd4 {[%emt 1:33:02]} 0-1

[Event "Norway Eliteserien 2023-24"]
[Site "Oslo"]
[Date "2024.03.08"]
[Round "7.16"]
[White "Haug, Havard"]
[Black "Stenersen, Gudmund"]
[Result "1-0"]
[ECO "D00"]
[WhiteElo "2341"]
[BlackElo "2144"]
[Annotator "RC"]
[PlyCount "73"]
[EventDate "2023.10.27"]
[EventType "team-tourn"]
[EventCountry "NOR"]
[SourceTitle "playchess.com"]
[Source "ChessBase"]
[SourceQuality "1"]
[TimeControl "40/5400+30:1800+30"]

1. d4 Nf6 2. Nc3 d5 3. Bf4 e6 4. Nb5 Na6 5. e3 c6 6. Nc3 b6 7. Nf3 Bb7 8. Ne5 Rc8 9. a3 Be7 10. Bd3 O-O 11. h4 Nc7 12. g4 c5 13. g5 Ne4 14. Qg4 cxd4 15. exd4 f5 16. Qh5 Qe8 17. g6 Nf6 18. gxh7+ Nxh7 19. Ng6 Bf6 20. Ne2 Ba6 21. Bxa6 Nxa6 22. c3 Nb8 23. Bd6 Rf7 24. Rg1 Nd7 25. Rg5 Bd8 26. Nef4 Ndf6 27. Qf3 Ne4 28. Rh5 Nef6 29. O-O-O Bc7 30. Bxc7 Rfxc7 31. Re1 Nxh5 32. Rxe6 Qb5 33. Nxh5 Qc4 34. Ne7+ Kh8 35. Nf4 Rxe7 36. Ng6+ Kg8 {[%emt 1:47:30]} 37. Nxe7+ {[%emt 0:54:58]} 1-0

[Event "Norway Eliteserien 2023-24"]
[Site "Oslo"]
[Date "2024.03.08"]
[Round "7.21"]
[White "Sadhwani, Raunak"]
[Black "Kvaloy, Aksel Bu"]
[Result "1-0"]
[ECO "B90"]
[WhiteElo "2649"]
[BlackElo "2443"]
[Annotator "RC"]
[PlyCount "75"]
[EventDate "2023.10.27"]
[EventType "team-tourn"]
[EventCountry "NOR"]
[SourceTitle "playchess.com"]
[Source "ChessBase"]
[SourceQuality "1"]
[TimeControl "40/5400+30:1800+30"]

1. e4 c5 2. Nf3 d6 3. d4 cxd4 4. Nxd4 Nf6 5. Nc3 a6 6. Bd3 e5 7. Nde2 Be7 8. O-O O-O 9. h3 Nbd7 10. Ng3 Nc5 11. Be2 Be6 12. Be3 Rc8 13. Bf3 b5 14. Qd2 g6 15. Bh6 Re8 16. Rfd1 Qc7 17. Nf5 Bxf5 18. exf5 e4 19. Bg4 Rcd8 20. Qd4 d5 21. b4 gxf5 22. Bxf5 Ne6 23. Qd2 Qe5 24. Bxe6 fxe6 25. Ne2 Rc8 26. a4 Kf7 27. axb5 axb5 28. Ra7 Qb8 29. Rda1 Rc7 30. R7a6 Rc4 31. c3 Qe5 32. Bf4 Qh5 33. Ra7 Rcc8 34. R1a6 Rcd8 35. Nd4 e5 36. Bg5 exd4 37. Bxf6 Qf5 {[%emt 1:48:40]} 38. Qh6 {[%emt 1:37:31]} 1-0

[Event "Norway Eliteserien 2023-24"]
[Site "Oslo"]
[Date "2024.03.08"]
[Round "7.22"]
[White "Gjestemoen-VonHirsch, Andre"]
[Black "Tari, Aryan"]
[Result "0-1"]
[ECO "D02"]
[WhiteElo "2309"]
[BlackElo "2635"]
[Annotator "RC"]
[PlyCount "62"]
[EventDate "2023.10.27"]
[EventType "team-tourn"]
[EventCountry "NOR"]
[SourceTitle "playchess.com"]
[Source "ChessBase"]
[SourceQuality "1"]
[TimeControl "40/5400+30:1800+30"]

1. d4 Nf6 2. Bf4 d5 3. e3 c5 4. Nd2 Nc6 5. Ngf3 e6 6. c3 Nh5 7. Bg5 f6 8. Bh4 g6 9. a3 cxd4 10. cxd4 Bd6 11. Be2 O-O 12. O-O g5 13. Bg3 Nxg3 14. hxg3 f5 15. Re1 g4 16. Nh2 h5 17. Nhf1 Rf7 18. Bd3 Qf6 19. b4 a6 20. Re2 h4 21. f4 hxg3 22. Nxg3 Nxd4 23. Rf2 Nc6 24. Rc1 Bd7 25. e4 Qh4 26. exd5 Bxf4 27. dxe6 Bxg3 28. exf7+ Kg7 29. Qe1 Rh8 30. Kf1 Nd4 31. Rc7 {[%emt 1:41:53]} Qh1# {[%emt 1:26:30]} 0-1

[Event "Norway Eliteserien 2023-24"]
[Site "Oslo"]
[Date "2024.03.08"]
[Round "7.23"]
[White "Christiansen, Johan-Sebastian"]
[Black "Shehzad, Shazil"]
[Result "1/2-1/2"]
[ECO "A13"]
[WhiteElo "2633"]
[BlackElo "2265"]
[Annotator "TA"]
[PlyCount "134"]
[EventDate "2023.10.27"]
[EventType "team-tourn"]
[EventCountry "NOR"]
[SourceTitle "playchess.com"]
[Source "ChessBase"]
[SourceQuality "1"]
[TimeControl "40/5400+30:1800+30"]

{[%evp 35,134,-55,-46,-72,-58,-113,0,0,0,0,7,-27,78,67,108,116,124,124,127,122,110,126,129,117,110,117,127,126,129,116,115,119,225,196,214,245,225,222,222,95,104,82,89,34,70,69,65,54,52,53,236,243,237,227,303,308,304,297,251,68,72,73,73,72,70,69,68,68,68,52,52,8,8,8,8,8,8,0,0,0,0,0,0,0,0,0,0,0,0,0,0,0,0,0,0,-8,-8,-8,-8,-8,-8]} 1. c4 Nf6 2. g3 e6 3. Bg2 d5 4. Nf3 d4 5. O-O c5 6. e3 Nc6 7. exd4 cxd4 8. d3 Bd6 {A13: English Opening: 1...e6.} 9. Nbd2 h6 10. Re1 O-O 11. Qc2 e5 12. a3 a5 13. c5 Bc7 14. Rb1 Bf5 15. Nh4 $146 ({Predecessor:} 15. b4 axb4 16. axb4 Nd5 17. Ne4 Ndxb4 18. Qe2 Ra2 19. Rb2 Rxb2 20. Bxb2 Bxe4 21. Qxe4 {½-½ Beck,F (1535)-Malchereck,Z (1726) GER-chT U16 Darmstadt 2022 (6)}) 15... Be6 16. Nc4 e4 17. Bxe4 Nxe4 18. Rxe4 Bd5 19. Re1 g5 20. Ng2 (20. Nf5 Qf6 21. g4 Rae8) ({Better is} 20. Qd1 $15) 20... Qf6 (20... Qd7 $1 $17 {Strongly threatening ...Rfe8.} 21. b4 Rfe8) 21. f4 $1 $11 Rfe8 22. Rf1 Qg6 23. Rf2 Bxg2 (23... Re7 $11 {keeps the balance.} 24. Bd2 Kh7) 24. Kxg2 $16 Re1 25. Bd2 Nb4 26. Bxb4 (26. axb4 $6 Qc6+ 27. Kh3 g4+ 28. Kxg4 Qg6+ 29. Kh4 Bd8+ 30. Kh3 Qh5+ 31. Kg2 Qd5+ 32. Kh3 Qh5+ 33. Kg2 Qd5+ 34. Kh3 Qh5+ $11) 26... Qc6+ {[#]} 27. Kh3 $1 Rxb1 28. Qxb1 axb4 {[#]} 29. fxg5 $1 (29. axb4 Kg7 30. Qf1 Qd7+ 31. f5 Kh7 $18) 29... hxg5 30. Qd1 (30. axb4 Kg7 31. Qf1 Rh8+ 32. Kg4 Qe6+ 33. Kf3 f5 $11) 30... Kg7 31. Qf3 ({Inferior is} 31. axb4 Rh8+ 32. Kg4 Qg6 $11 (32... Qe6+ 33. Kf3 $11)) 31... Qxf3 32. Rxf3 bxa3 33. bxa3 Re8 (33... Kg6 $16 {keeps fighting.} 34. Kg4 Rh8) 34. Rf2 Rd8 35. Kg4 Kg6 36. Rf5 f6 37. h4 (37. a4 $18 {is more deadly.}) 37... gxh4 $16 38. gxh4 Kf7 39. Rf3 (39. Rh5 $16 {Hoping for Rh7+.} Ke6 40. Rh7 Rg8+ 41. Kf3 Rg3+ 42. Ke2) 39... Ke6 40. Rh3 Rd5 41. c6 b5 42. Nd2 Rd8 $2 (42... f5+ $14 43. Kf3 Rd6) 43. h5 $18 f5+ 44. Kf3 Kd5 45. h6 Kxc6 46. h7 Rh8 47. Rh5 $2 (47. Kg2 $18) 47... Kd7 48. Nb3 (48. Rxf5 Rxh7 49. Rxb5 Rh3+ 50. Ke4 Kc6 $11) 48... Bd6 49. Nxd4 Bxa3 50. Nxb5 Bb2 51. Rh2 Be5 52. Rh6 Ke7 53. Na3 Bg7 54. Rh1 Kf7 55. Nc4 Kg6 56. Rg1+ Kf6 57. Ne3 Rxh7 58. Nd5+ Kf7 59. Rg5 Rh3+ 60. Ke2 Rh2+ 61. Kf3 Rh3+ 62. Ke2 Rh2+ 63. Kf3 Rh3+ 64. Ke2 Rh2+ 65. Kf1 Bh6 66. Rxf5+ Ke6 67. Rf2 $1 {[%emt 2:31:28]} Rxf2+ {[%emt 2:23:41]} 1/2-1/2

[Event "Norway Eliteserien 2023-24"]
[Site "Oslo"]
[Date "2024.03.08"]
[Round "7.24"]
[White "Tallaksen, Levi Andre"]
[Black "Urkedal, Frode Olav Olsen"]
[Result "0-1"]
[ECO "A29"]
[WhiteElo "2312"]
[BlackElo "2525"]
[Annotator "TA"]
[PlyCount "108"]
[EventDate "2023.10.27"]
[EventType "team-tourn"]
[EventCountry "NOR"]
[SourceTitle "playchess.com"]
[Source "ChessBase"]
[SourceQuality "1"]
[TimeControl "40/5400+30:1800+30"]

{[%evp 39,108,-39,-43,-32,0,-65,-67,-73,-60,-58,0,-5,0,-25,-7,-52,0,0,0,0,0,-8,-8,-12,0,0,0,0,0,-12,0,0,0,0,0,0,0,-566,-521,-515,-504,-504,-463,-623,-604,-1889,-2287,-2446,-1637,-1029,-978,-1335,-2045,-5069,-5085,-5085,-3016,-5975,-5614,-3397,-2388,-5497,-5377,-6107,-6107,-6107,-6018,-5915,-5915,-29972,-29973]} 1. c4 e5 2. Nc3 Nf6 3. g3 Bb4 4. Bg2 O-O 5. Nf3 Re8 6. O-O e4 7. Nd4 Nc6 8. Nc2 Bxc3 9. dxc3 h6 10. Ne3 d6 11. Qc2 {was the old line (11.b3).} a5 12. Rd1 {A29: English Opening: Four Knights Variation with 4 g3.} b6 13. Rb1 Bd7 14. Nd5 Bf5 15. b4 $146 ({Predecessor:} 15. Be3 Bg6 16. Nf4 Bf5 17. Nd5 Ng4 18. h3 Nf6 19. Rbc1 Bh7 20. Re1 a4 21. b3 {½-½ Pech,S (1948)-Dialfonso,D (2207) FICGS rapid A 000289 email 2022 (1)}) 15... Bh7 16. Be3 Nxd5 17. cxd5 Ne5 18. Bxe4 Bxe4 19. Qxe4 axb4 20. cxb4 Rxa2 21. Rd2 Ra4 22. Rc2 (22. Bf4 $11) 22... b5 $1 $15 23. Bd4 Nc4 24. Qg4 $1 f6 (24... Qg5 $15 25. Qd7 Rea8) 25. Rb3 Qe7 26. f3 Rea8 27. Qg6 (27. Kf2 {simplifies} Qf8 28. Qe6+ Kh8 29. h4) 27... Ra3 (27... Qf7 $15 28. Qf5 Qe7) 28. Rxa3 $11 Rxa3 29. Kf2 Ra4 30. h4 Qf7 31. Qf5 (31. Qxf7+ {simplifies} Kxf7 32. Bc3 f5 33. Rc1) 31... Qe8 32. g4 Rxb4 33. g5 fxg5 34. Ra2 Ra4 35. Rxa4 bxa4 36. hxg5 Qh5 37. Qe6+ Kh7 38. Bxg7 $2 {[%mdl 8192]} (38. Bc3 $11 {and White is okay.} Nb6 (38... Qxg5 $2 39. Qe4+ Kh8 40. Qxc4 $18) 39. gxh6 Qxh6 40. Qe4+ Kh8 (40... Qg6 41. Qh4+ Qh6 42. Qe4+ Qg6 43. Qh4+ Qh6 44. Qe4+ $11) 41. Qe8+ Kh7 42. Qe4+ Kh8 (42... Qg6 43. Qh4+ Qh6 44. Qe4+ $11) 43. Qe8+ Kh7 44. Qe4+) 38... Qh2+ (38... Kxg7 39. gxh6+ Qxh6 40. Qg4+ Kf7 41. Qxc4 Qh2+ 42. Ke1 $11) (38... hxg5 39. Bc3 Qh2+ 40. Kf1 Qh1+ 41. Kf2 Qh2+ 42. Kf1 Qh1+ 43. Kf2 Qh2+ $11) 39. Kf1 Qh1+ (39... Kxg7 40. Qf6+ Kg8 41. Qe6+ Kf8 42. Qf5+ Ke7 43. Qe6+ Kd8 44. Qg8+ Ke7 45. Qe6+ Kf8 (45... Kd8 46. Qg8+ Kd7 47. Qf7+ Kd8 48. Qg8+ $11) 46. Qc8+ Kf7 47. Qe6+ (47. Qxc7+ Kg6 $11) 47... Kf8 $11) (39... hxg5 40. Bf6 Qh1+ 41. Kf2 Qh2+ 42. Kf1 Qh1+ 43. Kf2 Qh2+ 44. Kf1 $11) 40. Kf2 Qh4+ (40... Kxg7 41. Qe7+ Kg8 42. Qe6+ (42. Qxc7 Qh4+ 43. Kg1 Qxg5+ 44. Kf2 Qh4+ 45. Kg1 Qe1+ 46. Kh2 Qxe2+ 47. Kg3 Qe5+ 48. Kh3 Qf5+ 49. Kg3 Ne5 $19) (42. Qd8+ Kf7 $11) 42... Kf8 43. Qc8+ Kf7 44. Qxc7+ Kg6 45. Qxc4 $18) (40... hxg5 41. Qf5+ Kxg7 42. Qxg5+ Kf7 43. Qf4+ Ke8 44. Qxc4 $14) 41. Kg2 Qxg5+ ({And not} 41... Kxg7 42. Qe7+ Kg8 43. Qe8+ (43. Qd8+ Kg7 $11) 43... Kg7 44. Qe7+ Kg8 45. Qd8+ Kg7 46. gxh6+ Qxh6 47. Qxc7+ Kf6 48. Qxc4 $11) 42. Kf2 Qe3+ ({Less strong is} 42... Qxg7 43. Qe4+ Kg8 44. Qxc4 $11) 43. Qxe3 Nxe3 44. Bd4 Nxd5 45. e4 Nb4 46. Ke2 a3 47. Kd2 a2 48. Kc1 Nd3+ 49. Kd2 Ne5 50. Ke3 c5 51. Bc3 h5 52. f4 Nc4+ 53. Kd3 Na5 54. Kc2 {[%emt 1:41:41]} h4 {[%emt 1:55:24]} 0-1

[Event "Norway Eliteserien 2023-24"]
[Site "Oslo"]
[Date "2024.03.08"]
[Round "7.25"]
[White "Kaasen, Tor Fredrik"]
[Black "Fossan, Aleksander"]
[Result "1/2-1/2"]
[ECO "B27"]
[WhiteElo "2437"]
[BlackElo "2133"]
[Annotator "RC"]
[PlyCount "74"]
[EventDate "2023.10.27"]
[EventType "team-tourn"]
[EventCountry "NOR"]
[SourceTitle "playchess.com"]
[Source "ChessBase"]
[SourceQuality "1"]
[TimeControl "40/5400+30:1800+30"]

1. e4 c5 2. Nf3 g6 3. c3 Nf6 4. e5 Nd5 5. Qb3 e6 6. d4 cxd4 7. cxd4 Nc6 8. Nc3 Nxc3 9. bxc3 d6 10. Bf4 dxe5 11. Nxe5 Bg7 12. Nxc6 bxc6 13. Be2 O-O 14. O-O Qa5 15. Bf3 e5 16. dxe5 Be6 17. Qb4 Qa6 18. Qc5 Rab8 19. Rfd1 Rb5 20. Qe3 Ra5 21. Rd2 h5 22. h4 Re8 23. Rd6 Rxa2 24. Rxa2 Qxa2 25. Bxc6 Rc8 26. Qd4 a5 27. Kh2 Qb3 28. Bg3 Bf8 29. Bd7 Bxd7 30. Rxd7 a4 31. e6 Qxe6 32. Qxa4 Rxc3 33. Rd8 Rc8 34. Qd4 Rxd8 35. Qxd8 Qe7 36. Qb8 Kh7 37. Qc7 {[%emt 1:46:26]} Qxc7 {[%emt 1:42:19]} 1/2-1/2

[Event "Norway Eliteserien 2023-24"]
[Site "Oslo"]
[Date "2024.03.08"]
[Round "7.26"]
[White "Hestholm, Gustav"]
[Black "Haldorsen, Benjamin"]
[Result "0-1"]
[ECO "B41"]
[WhiteElo "1942"]
[BlackElo "2427"]
[Annotator "RC"]
[PlyCount "64"]
[EventDate "2023.10.27"]
[EventType "team-tourn"]
[EventCountry "NOR"]
[SourceTitle "playchess.com"]
[Source "ChessBase"]
[SourceQuality "1"]
[TimeControl "40/5400+30:1800+30"]

1. e4 c5 2. Nf3 e6 3. d4 cxd4 4. Nxd4 a6 5. c4 Nf6 6. Nc3 Qc7 7. a3 b6 8. Be3 Bb7 9. f3 Nc6 10. Be2 Be7 11. O-O O-O 12. Rc1 Ne5 13. b4 Ng6 14. g4 Bd6 15. Rf2 Bf4 16. Qd2 h5 17. gxh5 Nxh5 18. Kh1 Qe5 19. Na4 f5 20. Nxb6 Rad8 21. Bxf4 Ngxf4 22. exf5 Nh3 23. Rff1 Qf6 24. c5 N5f4 25. Bc4 Kh8 26. Rcd1 Qg5 27. Nb3 Qh5 28. Qe3 Rxf5 29. Na5 Re5 30. Qc3 Qg4 31. Rd2 Re1 32. Qd4 {[%emt 1:45:55]} Bxf3+ {[%emt 1:39:16]} 0-1

[Event "Norway Eliteserien 2023-24"]
[Site "Oslo"]
[Date "2024.03.08"]
[Round "7.31"]
[White "Petkov, Momchil"]
[Black "Asker-A. Brkic"]
[Result "1/2-1/2"]
[ECO "D37"]
[WhiteElo "2504"]
[BlackElo "2633"]
[Annotator "RC"]
[PlyCount "53"]
[EventDate "2023.10.27"]
[EventType "team-tourn"]
[EventCountry "NOR"]
[SourceTitle "playchess.com"]
[Source "ChessBase"]
[SourceQuality "1"]
[TimeControl "40/5400+30:1800+30"]

1. d4 Nf6 2. Nf3 d5 3. c4 e6 4. Nc3 Nbd7 5. a3 c6 6. Qd3 b6 7. cxd5 cxd5 8. Bf4 a6 9. e3 Bb7 10. Qb1 Be7 11. Bd3 Rc8 12. O-O b5 13. Rc1 h6 14. h3 O-O 15. Rc2 Nb6 16. b3 Ne4 17. Nxe4 dxe4 18. Rxc8 Qxc8 19. Bxe4 Bxe4 20. Qxe4 Bxa3 21. Qb1 Bb4 22. e4 a5 23. Qd3 Qc3 24. Qd1 Qc6 25. Qd3 Qc3 26. Qd1 Qc6 {[%emt 1:28:31]} 27. Qd3 {[%emt 1:14:39]} 1/2-1/2

[Event "Norway Eliteserien 2023-24"]
[Site "Oslo"]
[Date "2024.03.08"]
[Round "7.32"]
[White "Asker-A. Jankovic"]
[Black "Delchev, Aleksander"]
[Result "1/2-1/2"]
[ECO "D38"]
[WhiteElo "2550"]
[BlackElo "2492"]
[Annotator "RC"]
[PlyCount "28"]
[EventDate "2023.10.27"]
[EventType "team-tourn"]
[EventCountry "NOR"]
[SourceTitle "playchess.com"]
[Source "ChessBase"]
[SourceQuality "1"]
[TimeControl "40/5400+30:1800+30"]

1. d4 Nf6 2. c4 e6 3. Nf3 d5 4. Nc3 Bb4 5. cxd5 exd5 6. Bg5 h6 7. Bh4 O-O 8. e3 Bf5 9. Qb3 Bxc3+ 10. Qxc3 Nbd7 11. Be2 Re8 12. Nd2 Rc8 13. b4 Ne4 14. Nxe4 {[%emt 0:33:44]} Qxh4 {[%emt 0:31:06]} 1/2-1/2

[Event "Norway Eliteserien 2023-24"]
[Site "Oslo"]
[Date "2024.03.08"]
[Round "7.33"]
[White "Elmi, Saad Abobaker"]
[Black "Sahl, Bjarke"]
[Result "1-0"]
[ECO "B38"]
[WhiteElo "2323"]
[BlackElo "2216"]
[Annotator "RC"]
[PlyCount "93"]
[EventDate "2023.10.27"]
[EventType "team-tourn"]
[EventCountry "NOR"]
[SourceTitle "playchess.com"]
[Source "ChessBase"]
[SourceQuality "1"]
[TimeControl "40/5400+30:1800+30"]

1. e4 c5 2. Nf3 a6 3. c4 Nc6 4. d4 cxd4 5. Nxd4 g6 6. Nc3 Bg7 7. Be3 d6 8. Be2 Nf6 9. O-O O-O 10. f3 Nxd4 11. Bxd4 Be6 12. b3 Rc8 13. Qd3 Nd7 14. Bxg7 Kxg7 15. f4 f6 16. Rac1 Qa5 17. Kh1 Rc5 18. Nd5 Qd8 19. Qd4 Rc8 20. Rce1 Re8 21. Ne3 Qb6 22. Qd2 Nc5 23. Bf3 Qc7 24. Nd5 Bxd5 25. exd5 b5 26. cxb5 axb5 27. Bg4 f5 28. Be2 Rb8 29. Bf3 Nd7 30. g4 fxg4 31. Bxg4 Nf6 32. Be6 b4 33. Rf3 Rb5 34. f5 Qb7 35. Rh3 Rxd5 36. Bxd5 Qxd5+ 37. Qxd5 Nxd5 38. Rd3 Nf6 39. fxg6 hxg6 40. Rd4 d5 41. Re5 e6 42. Rxb4 Nh5 43. a4 Kf6 44. Re1 e5 45. a5 e4 46. a6 Ra8 {[%emt 1:44:44]} 47. Ra1 {[%emt 2:08:28]} 1-0

[Event "Norway Eliteserien 2023-24"]
[Site "Oslo"]
[Date "2024.03.08"]
[Round "7.34"]
[White "Aulin-Jansson, Joran"]
[Black "Mihajlov, Sebastian"]
[Result "0-1"]
[ECO "C22"]
[WhiteElo "2102"]
[BlackElo "2373"]
[Annotator "RC"]
[PlyCount "73"]
[EventDate "2023.10.27"]
[EventType "team-tourn"]
[EventCountry "NOR"]
[SourceTitle "playchess.com"]
[Source "ChessBase"]
[SourceQuality "1"]
[TimeControl "40/5400+30:1800+30"]

1. e4 e5 2. d4 exd4 3. Qxd4 Nc6 4. Qe3 g6 5. Bd2 Bg7 6. Bc3 Nf6 7. f4 O-O 8. e5 d6 9. exf6 Re8 10. Qxe8+ Qxe8+ 11. Be2 Bh8 12. Nf3 Qd8 13. O-O Bxf6 14. Ng5 Nd4 15. Bd1 Bf5 16. Rf2 h6 17. Nf3 Nxf3+ 18. Bxf3 d5 19. Bxf6 Qxf6 20. Nc3 c6 21. Re1 Kf8 22. g4 Bd7 23. Be2 Re8 24. Ref1 Qh4 25. f5 gxf5 26. gxf5 d4 27. Nd1 Re5 28. Bd3 c5 29. Rg2 Re1 30. Nf2 Rxf1+ 31. Kxf1 Qf4 32. Rg4 Qc1+ 33. Kg2 h5 34. Rg3 Bc6+ 35. Be4 Qxc2 36. Kf3 d3 {[%emt 1:03:03]} 37. Rg8+ {[%emt 1:44:50]} 0-1

[Event "Norway Eliteserien 2023-24"]
[Site "Oslo"]
[Date "2024.03.08"]
[Round "7.35"]
[White "Mellem, Nicolas Axel"]
[Black "Strand, Vetle Bjorge"]
[Result "0-1"]
[ECO "A06"]
[WhiteElo "2145"]
[BlackElo "2089"]
[Annotator "ChessBase"]
[PlyCount "68"]
[EventDate "2023.10.27"]
[EventType "team-tourn"]
[EventCountry "NOR"]
[SourceTitle "playchess.com"]
[Source "ChessBase"]
[SourceQuality "1"]
[TimeControl "40/5400+30:1800+30"]

1. d4 d5 2. c4 c6 3. Nf3 Nf6 4. e3 e6 5. Bd3 Nbd7 6. b3 Bd6 7. Bb2 b6 8. O-O Bb7 9. Nbd2 O-O 10. Ne5 c5 11. f4 cxd4 12. exd4 Ne4 13. cxd5 Nxd2 14. Qxd2 Bxd5 15. f5 Nxe5 16. dxe5 Bc5+ 17. Kh1 Be4 18. Rad1 exf5 19. Qc2 Qd5 20. Bxe4 Qxe4 21. Qc3 Rfd8 22. h3 Rxd1 23. Rxd1 Qe3 24. Qxe3 Bxe3 25. Rd7 a5 26. e6 f6 27. e7 Re8 28. Ba3 Kf7 29. Rb7 f4 30. h4 h5 31. Kh2 Bf2 32. Kh3 Bg3 33. Rxb6 g5 34. hxg5 {[%emt 1:45:24]} fxg5 {[%emt 1:45:11]} 0-1

[Event "Norway Eliteserien 2023-24"]
[Site "Oslo"]
[Date "2024.03.08"]
[Round "7.36"]
[White "Diesen, Bruce"]
[Black "Olsen, Michael R. W."]
[Result "1-0"]
[ECO "B67"]
[WhiteElo "2065"]
[BlackElo "2041"]
[Annotator "RC"]
[PlyCount "71"]
[EventDate "2023.10.27"]
[EventType "team-tourn"]
[EventCountry "NOR"]
[SourceTitle "playchess.com"]
[Source "ChessBase"]
[SourceQuality "1"]
[TimeControl "40/5400+30:1800+30"]

1. e4 c5 2. Nf3 Nc6 3. d4 cxd4 4. Nxd4 Nf6 5. Nc3 d6 6. Bg5 e6 7. Qd2 a6 8. O-O-O Bd7 9. f3 Be7 10. h4 h6 11. Be3 h5 12. Bg5 b5 13. Nxc6 Bxc6 14. Kb1 Qb6 15. Bd3 a5 16. Rhe1 b4 17. Bxf6 gxf6 18. Ne2 Qc5 19. f4 a4 20. c3 d5 21. exd5 Bxd5 22. cxb4 Qxb4 23. Nc3 Bc6 24. f5 Rg8 25. fxe6 Rxg2 26. Be2 Rd8 27. exf7+ Kxf7 28. Qe3 Rxd1+ 29. Rxd1 a3 30. b3 Bc5 31. Qd3 Rxe2 32. Qh7+ Ke6 33. Qg8+ Kf5 34. Nxe2 Qe4+ 35. Kc1 Qxe2 {[%emt 1:47:41]} 36. Qh7+ {[%emt 1:48:16]} 1-0

[Event "Norway Eliteserien 2023-24"]
[Site "Oslo"]
[Date "2024.03.08"]
[Round "7.41"]
[White "Houska, Jovanka"]
[Black "Sklyarov, Dmitry V."]
[Result "1-0"]
[ECO "A40"]
[WhiteElo "2342"]
[BlackElo "2450"]
[Annotator "RC"]
[PlyCount "41"]
[EventDate "2023.10.27"]
[EventType "team-tourn"]
[EventCountry "NOR"]
[SourceTitle "playchess.com"]
[Source "ChessBase"]
[SourceQuality "1"]
[TimeControl "40/5400+30:1800+30"]

1. d4 e6 2. c4 b6 3. e4 Bb7 4. Bd3 Bb4+ 5. Bd2 Bxd2+ 6. Qxd2 d5 7. cxd5 exd5 8. e5 c5 9. Nf3 Nc6 10. Nc3 Nge7 11. O-O O-O 12. Rfe1 f6 13. dxc5 bxc5 14. exf6 Rxf6 15. Ng5 h6 16. Ne6 Qd6 17. Nb5 Qb8 18. Nxc5 Bc8 19. Qe3 Bf5 20. Nd4 Bxd3 {[%emt 0:53:10]} 21. Nd7 {[%emt 1:25:31]} 1-0